fUST/lending_fUST_20250805
["ID","MTS","AMOUNT","RATE_DAILY","PERIOD"]
[377417197,1754400649049,-842.25606042,0.00028949,2]
[377417198,1754400649059,-160.0,0.00028949,2]
[377417199,1754400649068,-216.4206905,0.00028949,2]
[377417200,1754400649078,-152.88,0.0002895,15]
[377417201,1754400649087,-150.865956,0.00028979,6]
[377417202,1754400649096,-8000.0,0.00028998,3]
[377417203,1754400649106,-500.0,0.00028999,2]
[377417204,1754400649116,-152.0,0.00029,14]
[377417205,1754400649126,-312.16666667,0.00029,10]
[377417206,1754400649135,-3000.0,0.0002904,7]
[377417207,1754400649145,-152.88,0.0002905,15]
[377417208,1754400649154,-4000.0,0.00029088,3]
[377417209,1754400649164,-500.82773618,0.0002912,5]
[377417210,1754400649173,-150.865956,0.00029122,2]
[377417211,1754400649183,-152.88,0.0002915,15]
[377417212,1754400649193,-200.0,0.00029211,5]
[377417213,1754400649203,-152.88,0.0002925,15]
[377417214,1754400649213,-2000.0,0.00029264,5]
[377417215,1754400649222,-1000.0,0.00029268,5]
[377417216,1754400649232,-560.0,0.00029292,2]
[377417217,1754400649241,-6000.0,0.00029316,3]
[377417218,1754400649253,-152.88,0.0002935,15]
[377417219,1754400649263,-394.019271,0.0002935,2]
[377417220,1754400649273,-532.59507616,0.00029376,11]
[377417221,1754400649283,-312.16666667,0.000294,3]
[377417222,1754400649292,-160.2170531,0.0002941,30]
[377417223,1754400649302,-292.9155566,0.0002941,30]
[377417224,1754400649312,-292.9155566,0.0002941,30]
[377417225,1754400649322,-292.9155566,0.0002941,30]
[377417226,1754400649331,-292.9155566,0.0002941,30]
[377417227,1754400649342,-292.9155566,0.0002941,30]
[377417228,1754400649351,-200.0,0.00029412,15]
[377417229,1754400649361,-300.0,0.00029412,15]
[377417230,1754400649370,-150.865956,0.00029429,2]
[377417231,1754400649380,-156.535649,0.00029429,2]
[377417232,1754400649389,-152.88,0.0002945,15]
[377417233,1754400649399,-682.4013482,0.0002945,30]
[377417234,1754400649408,-23860.87155709,0.00029478,2]
[377417235,1754400649418,-152.88,0.0002955,15]
[377417236,1754400649427,-152.88,0.0002965,15]
[377417237,1754400649437,-250.0,0.00029666,2]
[377417238,1754400649446,-152.88,0.0002975,15]
[377417239,1754400649456,-200.0,0.00029759,5]
[377417240,1754400649466,-660.0,0.0002984,2]
[377417241,1754400649476,-152.88,0.0002985,15]
[377417242,1754400649486,-3000.0,0.00029862,7]
[377417243,1754400649496,-152.88,0.0002995,15]
[377417244,1754400649505,-800.0,0.0002996,2]
[377417245,1754400649515,-201.28339804,0.0003,2]
[377417246,1754400649525,-152.0,0.0003,30]
[377417247,1754400649534,-300.0,0.0003,14]
[377417248,1754400649544,-100004.26158883,0.0003,30]
[377417249,1754400649618,-160.0,0.0003,30]
[377417250,1754400649629,-461.15695721,0.0003,30]
[377417251,1754400649638,-4000.0,0.0003,4]
[377417252,1754400649648,-160.0,0.0003,30]
[377417253,1754400649658,-152.88,0.0003005,15]
[377417254,1754400649667,-150.865956,0.00030088,6]
[377417255,1754400649677,-152.0,0.000301,31]
[377417256,1754400649687,-10177.92685651,0.0003013,2]
[377417257,1754400649697,-152.88,0.0003015,15]
[377417258,1754400649706,-292.9155566,0.00030231,30]
[377417259,1754400649716,-292.9155566,0.00030231,30]
[377417260,1754400649726,-292.9155566,0.00030231,30]
[377417261,1754400649736,-153.0,0.00030231,30]
[377417262,1754400649748,-707.0361931,0.00030231,30]
[377417263,1754400649758,-153.0,0.00030231,30]
[377417264,1754400649768,-153.0,0.00030231,30]
[377417265,1754400649777,-153.0,0.00030231,30]
[377417266,1754400649787,-306.0,0.00030231,30]
[377417267,1754400649796,-152.88,0.0003025,15]
[377417268,1754400649806,-152.88,0.0003035,15]
[377417269,1754400649815,-995.9501556,0.00030364,5]
[377417270,1754400649825,-760.0,0.00030388,2]
[377417271,1754400649834,-850.68793609,0.000304,2]
[377417272,1754400649843,-10677.61847706,0.000304,2]
[377417273,1754400649852,-152.88,0.0003045,15]
[377417274,1754400649865,-200.0,0.0003048,7]
[377417275,1754400649875,-152.0,0.000305,33]
[377417276,1754400649884,-152.0,0.000305,35]
[377417277,1754400649894,-153.0,0.000305,29]
[377417278,1754400649904,-143820.85,0.000305,4]
[377417279,1754400649914,-197177.77,0.000305,4]
[377417280,1754400649925,-603018.18136925,0.000305,4]
[377417281,1754400650942,-151.0,0.0002674,2]
[377417282,1754400650951,-69.35770558,0.0002674,2]
[377417283,1754400669617,155.0,0.00025288,14]
[377417284,1754400673785,319.55704587,0.000249,2]
[377417285,1754400673870,319.55704569,0.000249,2]
[377417286,1754400673960,319.55704569,0.000249,2]
[377417287,1754400674070,319.55704569,0.000249,2]
[377417288,1754400674192,319.55704569,0.000249,2]
[377417289,1754400674378,319.55704569,0.000249,2]
[377417290,1754400674425,319.55704569,0.000249,2]
[377417291,1754400674528,319.55704569,0.000249,2]
[377417292,1754400674637,319.55704569,0.00025455,3]
[377417293,1754400776737,198.799771,0.00027397,120]
[377417294,1754400799414,274.904852,0.00025652,2]
[377417295,1754400806042,153.0,0.000265,2]
[377417296,1754400846671,223.37639294,0.000249,2]
[377417297,1754400846818,223.37639282,0.000249,2]
[377417298,1754400846904,223.37639282,0.000249,2]
[377417299,1754400847014,223.37639282,0.000249,2]
[377417300,1754400847115,223.37639282,0.000249,2]
[377417301,1754400847216,223.37639282,0.000249,2]
[377417302,1754400847311,223.37639282,0.000249,2]
[377417303,1754400847406,223.37639282,0.000249,2]
[377417304,1754400849634,223.37639282,0.00025455,3]
[377417305,1754400853342,-300.0,0.00026635,2]
[377417306,1754400856550,-7118.07601366,0.00026636,2]
[377417307,1754400856682,160.0,0.0002,3]
[377417308,1754400856718,-10000.0,0.00026636,2]
[377417309,1754400856848,-10000.0,0.00026636,2]
[377417310,1754400857008,-10000.0,0.00026636,2]
[377417311,1754400857607,160.0,0.0002,3]
[377417312,1754400857640,-10000.0,0.00026636,2]
[377417313,1754400857940,-3023.08351986,0.00026636,2]
[377417314,1754400857970,-3953.83296028,0.00026636,2]
[377417315,1754400858070,-1150.35025536,0.00026636,2]
[377417316,1754400858100,-152.0,0.00026644,2]
[377417317,1754400858133,-196.57544853,0.00026645,2]
[377417318,1754400858167,-500.0,0.00026645,2]
[377417319,1754400858200,-500.0,0.00026645,2]
[377417320,1754400858231,-612.43205488,0.00026645,2]
[377417321,1754400858266,-500.0,0.00026645,2]
[377417322,1754400858298,-500.0,0.00026645,2]
[377417323,1754400858332,-500.0,0.00026645,2]
[377417324,1754400858364,-277.28448246,0.00026645,2]
[377417325,1754400858465,-222.71551754,0.00026645,2]
[377417326,1754400858501,-405.37280767,0.00026645,2]
[377417327,1754400858638,-500.0,0.00026645,2]
[377417328,1754400858673,-500.0,0.00026645,2]
[377417329,1754400858706,-159.96670041,0.00026645,2]
[377417330,1754400858739,-160.0,0.00026646,2]
[377417331,1754400859105,-62.71551754,0.00026646,2]
[377417332,1754400859128,-160.0,0.00026646,2]
[377417333,1754400859155,-6103.88994876,0.00026646,2]
[377417334,1754400859186,-10000.0,0.00026646,2]
[377417335,1754400859205,-10000.0,0.00026646,2]
[377417336,1754400859227,-10000.0,0.00026646,2]
[377417337,1754400859255,-10000.0,0.00026646,2]
[377417338,1754400859278,-10000.0,0.00026646,2]
[377417339,1754400859336,-10000.0,0.00026646,2]
[377417340,1754400859472,-10000.0,0.00026646,2]
[377417341,1754400859990,-10000.0,0.00026646,2]
[377417342,1754400860125,-10000.0,0.00026646,2]
[377417343,1754400860277,-187.05,0.00026636,10]
[377417344,1754400860318,-9625.9,0.00026646,2]
[377417345,1754400860625,-10000.0,0.00026646,2]
[377417346,1754400860798,-10000.0,0.00026646,2]
[377417347,1754400860986,-10000.0,0.00026646,2]
[377417348,1754400861152,-10000.0,0.00026646,2]
[377417349,1754400861302,-10000.0,0.00026646,2]
[377417350,1754400861524,-10000.0,0.00026646,2]
[377417351,1754400861755,-10000.0,0.00026646,2]
[377417352,1754400862194,-10000.0,0.00026646,2]
[377417353,1754400862395,-10000.0,0.00026646,2]
[377417354,1754400862692,-10000.0,0.00026646,2]
[377417355,1754400862752,-10000.0,0.00026646,2]
[377417356,1754400862907,-10000.0,0.00026646,2]
[377417357,1754400863042,-10000.0,0.00026646,2]
[377417358,1754400863195,-10000.0,0.00026646,2]
[377417359,1754400863346,-10000.0,0.00026646,2]
[377417360,1754400863553,-10000.0,0.00026646,2]
[377417361,1754400863836,-10000.0,0.00026646,2]
[377417362,1754400863993,-10000.0,0.00026646,2]
[377417363,1754400864180,-10000.0,0.00026646,2]
[377417364,1754400864328,-10000.0,0.00026646,2]
[377417365,1754400866068,-10000.0,0.00026646,2]
[377417366,1754400866279,-10000.0,0.00026646,2]
[377417367,1754400866507,-10000.0,0.00026646,2]
[377417368,1754400866747,-10000.0,0.00026646,2]
[377417369,1754400866954,-10000.0,0.00026646,2]
[377417370,1754400867134,-10000.0,0.00026646,2]
[377417371,1754400867276,-4047.4945337,0.00026646,2]
[377417372,1754400868588,206.28856532,0.00025205,30]
[377417373,1754400889474,1698.72236728,0.00026546,2]
[377417374,1754400889500,10000.0,0.00026546,2]
[377417375,1754400889524,10000.0,0.00026546,2]
[377417376,1754400889549,10000.0,0.00026546,2]
[377417377,1754400889574,10000.0,0.00026546,2]
[377417378,1754400889599,10000.0,0.00026546,2]
[377417379,1754400889625,10000.0,0.00026546,2]
[377417380,1754400889649,10000.0,0.00026546,2]
[377417381,1754400889673,10000.0,0.00026546,2]
[377417382,1754400889698,10000.0,0.00026546,2]
[377417383,1754400889722,10000.0,0.00026546,2]
[377417384,1754400889745,10000.0,0.00026546,2]
[377417385,1754400889769,10000.0,0.00026546,2]
[377417386,1754400889795,6717.88766112,0.00026546,2]
[377417387,1754400892185,351.752655,0.00013699,2]
[377417388,1754400892482,351.752655,0.00020187,2]
[377417389,1754400897387,161.0,0.000266,4]
[377417390,1754400897915,986.01267184,0.00026646,2]
[377417392,1754400902531,728.35282215,0.00026645,2]
[377417393,1754400902570,703.24153489,0.00026645,2]
[377417394,1754400902599,25.11128726,0.00026645,2]
[377417395,1754400902643,728.35282215,0.00026645,2]
[377417396,1754400902684,728.35282215,0.00026645,2]
[377417397,1754400902725,728.35282215,0.00026645,2]
[377417398,1754400902764,728.35282215,0.00026645,2]
[377417399,1754400902799,728.35282215,0.00026645,2]
[377417400,1754400902838,728.35282215,0.00026645,2]
[377417401,1754400902872,728.35282215,0.00026645,2]
[377417402,1754400902909,728.35282215,0.00026645,2]
[377417403,1754400902948,728.35282215,0.00026645,2]
[377417404,1754400902986,728.35282215,0.00026645,2]
[377417405,1754400903031,728.35282215,0.00026645,2]
[377417406,1754400903086,728.35282215,0.00026645,2]
[377417407,1754400903174,728.35282215,0.00026645,2]
[377417408,1754400903221,506.30202479,0.00026645,2]
[377417409,1754400903250,222.05079736,0.00026645,2]
[377417410,1754400903293,728.35282215,0.00026645,2]
[377417411,1754400903329,728.35282215,0.00026645,2]
[377417412,1754400903478,728.35282215,0.00026645,2]
[377417413,1754400903521,728.35282215,0.00026645,2]
[377417414,1754400903568,728.35282215,0.00026645,2]
[377417415,1754400903617,728.35282215,0.00026645,2]
[377417416,1754400903664,728.35282215,0.00026645,2]
[377417417,1754400904091,728.35282215,0.00026645,2]
[377417418,1754400904134,728.35282215,0.00026645,2]
[377417419,1754400904172,728.35282215,0.00026645,2]
[377417420,1754400904244,728.35282215,0.00026645,2]
[377417421,1754400904283,728.35282215,0.00026645,2]
[377417422,1754400904328,728.35282215,0.00026645,2]
[377417423,1754400904369,309.36251469,0.00026645,2]
[377417424,1754400904399,418.99030746,0.00026645,2]
[377417425,1754400904451,728.35282215,0.00026645,2]
[377417426,1754400904535,728.35282215,0.00026645,2]
[377417427,1754400904573,728.35282215,0.00026645,2]
[377417428,1754400904617,728.35282215,0.00026645,2]
[377417429,1754400904661,728.35282215,0.00026645,2]
[377417430,1754400904702,728.35282215,0.00026645,2]
[377417431,1754400904743,728.35282215,0.00026645,2]
[377417432,1754400904867,728.35282215,0.00026645,2]
[377417433,1754400904910,728.35282215,0.00026645,2]
[377417434,1754400904946,728.35282215,0.00026645,2]
[377417435,1754400905043,728.35282215,0.00026645,2]
[377417436,1754400905103,728.35282215,0.00026645,2]
[377417437,1754400905145,728.35282215,0.00026645,2]
[377417438,1754400906232,112.42300459,0.00026645,2]
[377417439,1754400906274,387.57699541,0.00026645,2]
[377417440,1754400906322,500.0,0.00026645,2]
[377417441,1754400906374,500.0,0.00026645,2]
[377417442,1754400906458,289.39712766,0.00026645,2]
[377417443,1754400906527,500.0,0.00026645,2]
[377417444,1754400906596,500.0,0.00026645,2]
[377417445,1754400906638,500.0,0.00026645,2]
[377417446,1754400906731,500.0,0.00026645,2]
[377417447,1754400906772,500.0,0.00026645,2]
[377417448,1754400910112,5000.0,0.00026646,2]
[377417449,1754400910143,728.35282215,0.00026645,2]
[377417450,1754400910174,94.67305478,0.00026645,2]
[377417451,1754400910201,633.67976737,0.00026645,2]
[377417452,1754400914693,500.0,0.00026645,2]
[377417453,1754400914751,436.81623005,0.00026645,2]
[377417454,1754400928581,5000.0,0.00026646,2]
[377417455,1754400937865,3429.50400258,0.00026646,2]
[377417456,1754400946274,5000.0,0.000265,2]
[377417457,1754400960122,-1570.49599742,0.00026646,2]
[377417458,1754400962226,5000.0,0.000265,2]
[377417459,1754400967724,1859.00800516,0.00026627,2]
[377417460,1754400967749,672.15077118,0.00026627,2]
[377417461,1754400970924,152.3548301,0.00026646,2]
[377417462,1754400979913,5000.0,0.00026646,2]
[377417463,1754400981255,150.0,0.00024413,2]
[377417464,1754400996358,4025.49439872,0.00026646,2]
[377417465,1754400996384,974.50560128,0.00026646,2]
[377417466,1754401014693,5000.0,0.00026656,2]
[377417467,1754401018579,307.12504879,0.000249,2]
[377417468,1754401018614,1157.10996533,0.000249,2]
[377417469,1754401018867,1464.23501404,0.000249,2]
[377417470,1754401019024,1464.23501404,0.000249,2]
[377417471,1754401019071,1464.23501404,0.000249,2]
[377417472,1754401019113,1464.23501404,0.000249,2]
[377417473,1754401019459,1464.23501404,0.000249,2]
[377417474,1754401019572,547.20936319,0.000249,2]
[377417475,1754401019604,917.02565085,0.000249,2]
[377417476,1754401019670,1464.23501404,0.000249,2]
[377417477,1754401019753,1464.23501404,0.00025455,3]
[377417478,1754401025426,6154.50432107,0.00026546,2]
[377417479,1754401025457,10000.0,0.00026546,2]
[377417480,1754401025484,10000.0,0.00026546,2]
[377417481,1754401025511,10000.0,0.00026546,2]
[377417482,1754401025537,10000.0,0.00026546,2]
[377417483,1754401025566,10000.0,0.00026546,2]
[377417484,1754401025594,10000.0,0.00026546,2]
[377417485,1754401032187,5000.0,0.000265,2]
[377417488,1754401051674,-155.87,0.00026536,10]
[377417489,1754401061908,5000.0,0.0002519,2]
[377417490,1754401062138,3646.14599965,0.00019178,2]
[377417491,1754401078193,-779.4,0.00026536,10]
[377417492,1754401106095,-300.0,0.00026545,2]
[377417493,1754401112494,-3765.44106224,0.00026536,2]
[377417494,1754401112665,-5000.0,0.00026536,2]
[377417495,1754401112828,-5000.0,0.00026536,2]
[377417496,1754401113038,-991.61768496,0.00026536,2]
[377417497,1754401113105,-3016.76463008,0.00026546,2]
[377417498,1754401131432,-167.18304876,0.00026545,2]
[377417499,1754401131593,-339.07103565,0.00026545,2]
[377417500,1754401131625,-500.0,0.00026545,2]
[377417501,1754401131658,-377.26187548,0.00026545,2]
[377417502,1754401131688,-500.0,0.00026545,2]
[377417503,1754401131718,-451.93389652,0.00026545,2]
[377417504,1754401131965,-678.14161272,0.00026545,2]
[377417505,1754401131996,-500.0,0.00026545,2]
[377417506,1754401132028,-500.0,0.00026545,2]
[377417507,1754401132064,-678.14161272,0.00026545,2]
[377417508,1754401132202,-500.0,0.00026545,2]
[377417509,1754401132236,-678.14161272,0.00026545,2]
[377417510,1754401132267,-500.0,0.00026545,2]
[377417511,1754401132297,-500.0,0.00026545,2]
[377417512,1754401132416,-678.14161272,0.00026545,2]
[377417513,1754401132447,-500.0,0.00026545,2]
[377417514,1754401132480,-678.14161272,0.00026545,2]
[377417515,1754401132512,-544.93638281,0.00026545,2]
[377417516,1754401132721,-500.0,0.00026545,2]
[377417517,1754401132755,-678.14161272,0.00026545,2]
[377417518,1754401132788,-500.0,0.00026545,2]
[377417519,1754401132822,-678.14161272,0.00026545,2]
[377417520,1754401132995,-500.0,0.00026545,2]
[377417521,1754401133122,-500.0,0.00026545,2]
[377417522,1754401133155,-500.0,0.00026545,2]
[377417523,1754401133186,-500.0,0.00026545,2]
[377417524,1754401133217,-500.0,0.00026545,2]
[377417525,1754401133315,-500.0,0.00026545,2]
[377417526,1754401133345,-500.0,0.00026545,2]
[377417527,1754401133375,-500.0,0.00026545,2]
[377417528,1754401133404,-500.0,0.00026545,2]
[377417529,1754401133434,-500.0,0.00026545,2]
[377417530,1754401133582,-500.0,0.00026545,2]
[377417531,1754401133613,-500.0,0.00026545,2]
[377417532,1754401133644,-500.0,0.00026545,2]
[377417533,1754401133675,-500.0,0.00026545,2]
[377417534,1754401133705,-500.0,0.00026545,2]
[377417535,1754401133828,-678.14161272,0.00026545,2]
[377417536,1754401133861,-678.14161272,0.00026545,2]
[377417537,1754401133894,-500.0,0.00026545,2]
[377417538,1754401133928,-609.2919364,0.00026545,2]
[377417539,1754401134175,-68.84967632,0.00026545,2]
[377417540,1754401134205,-500.0,0.00026545,2]
[377417541,1754401134238,-678.14161272,0.00026545,2]
[377417542,1754401134269,-500.0,0.00026545,2]
[377417543,1754401134305,-678.14161272,0.00026545,2]
[377417544,1754401134447,-240.99241354,0.00026545,2]
[377417545,1754401134479,-500.0,0.00026545,2]
[377417546,1754401134512,-678.14161272,0.00026545,2]
[377417547,1754401134546,-678.14161272,0.00026545,2]
[377417548,1754401134577,-305.44872204,0.00026545,2]
[377417549,1754401134742,-194.55127796,0.00026545,2]
[377417550,1754401134863,-678.14161272,0.00026545,2]
[377417551,1754401134895,-500.0,0.00026545,2]
[377417552,1754401134929,-678.14161272,0.00026545,2]
[377417553,1754401134963,-220.18938048,0.00026545,2]
[377417554,1754401135044,-457.95223224,0.00026545,2]
[377417555,1754401135079,-500.0,0.00026545,2]
[377417556,1754401135114,-678.14161272,0.00026545,2]
[377417557,1754401135148,-500.0,0.00026545,2]
[377417558,1754401135182,-49.67069736,0.00026545,2]
[377417559,1754401135343,-628.47091536,0.00026545,2]
[377417560,1754401135378,-678.14161272,0.00026545,2]
[377417561,1754401135413,-500.0,0.00026545,2]
[377417562,1754401135444,-500.0,0.00026545,2]
[377417563,1754401135614,-678.14161272,0.00026545,2]
[377417564,1754401135652,-500.0,0.00026545,2]
[377417565,1754401135689,-678.14161272,0.00026545,2]
[377417566,1754401135722,-500.0,0.00026545,2]
[377417567,1754401135821,-678.14161272,0.00026545,2]
[377417568,1754401135854,-500.0,0.00026545,2]
[377417569,1754401135892,-678.14161272,0.00026545,2]
[377417570,1754401135924,-500.0,0.00026545,2]
[377417571,1754401136092,-678.14161272,0.00026545,2]
[377417572,1754401136125,-500.0,0.00026545,2]
[377417573,1754401136159,-678.14161272,0.00026545,2]
[377417574,1754401136191,-609.2919364,0.00026545,2]
[377417575,1754401136284,-68.84967632,0.00026545,2]
[377417576,1754401136314,-500.0,0.00026545,2]
[377417577,1754401136347,-678.14161272,0.00026545,2]
[377417578,1754401136379,-678.14161272,0.00026545,2]
[377417579,1754401136413,-471.59258376,0.00026545,2]
[377417580,1754401136812,-206.54902896,0.00026545,2]
[377417581,1754401136847,-678.14161272,0.00026545,2]
[377417582,1754401136882,-678.14161272,0.00026545,2]
[377417583,1754401136919,-678.14161272,0.00026545,2]
[377417584,1754401137097,-678.14161272,0.00026545,2]
[377417585,1754401137135,-678.14161272,0.00026545,2]
[377417586,1754401137171,-678.14161272,0.00026545,2]
[377417587,1754401137205,-253.00871096,0.00026545,2]
[377417588,1754401137450,-32.6784926,0.00026545,2]
[377417589,1754401137502,-206.54902896,0.00026545,2]
[377417590,1754401137534,-185.9053802,0.00026545,2]
[377417591,1754401137544,-492.23623252,0.00026545,2]
[377417592,1754401137560,-185.9053802,0.00026545,2]
[377417593,1754401137569,-492.23623252,0.00026545,2]
[377417594,1754401137585,-185.9053802,0.00026545,2]
[377417595,1754401137594,-492.23623252,0.00026545,2]
[377417596,1754401137615,-185.9053802,0.00026545,2]
[377417597,1754401137624,-332.14688556,0.00026545,2]
[377417598,1754401137661,-345.99472716,0.00026545,2]
[377417599,1754401137670,-332.14688556,0.00026545,2]
[377417600,1754401137692,-345.99472716,0.00026545,2]
[377417601,1754401137702,-332.14688556,0.00026545,2]
[377417602,1754401137719,-345.99472716,0.00026545,2]
[377417603,1754401137729,-332.14688556,0.00026545,2]
[377417604,1754401137747,-345.99472716,0.00026545,2]
[377417605,1754401137757,-332.14688556,0.00026545,2]
[377417606,1754401161021,-300.0,0.00026544,2]
[377417607,1754401161070,-345.99472716,0.00026545,2]
[377417608,1754401161111,-678.14161272,0.00026545,2]
[377417609,1754401161150,-665.81176521,0.00026545,2]
[377417610,1754401161187,-227.21515364,0.00026545,2]
[377417611,1754401161317,-665.81176521,0.00026545,2]
[377417612,1754401161351,-665.81176521,0.00026545,2]
[377417613,1754401161384,-665.81176521,0.00026545,2]
[377417614,1754401161421,-339.31764353,0.00026545,2]
[377417615,1754401161494,-326.49412168,0.00026545,2]
[377417616,1754401161529,-665.81176521,0.00026545,2]
[377417617,1754401161564,-665.81176521,0.00026545,2]
[377417618,1754401161600,-665.81176521,0.00026545,2]
[377417619,1754401161866,-665.81176521,0.00026545,2]
[377417620,1754401161902,-665.81176521,0.00026545,2]
[377417621,1754401161940,-665.81176521,0.00026545,2]
[377417622,1754401161975,-339.31764353,0.00026545,2]
[377417623,1754401162110,-326.49412168,0.00026545,2]
[377417624,1754401162145,-665.81176521,0.00026545,2]
[377417625,1754401162182,-665.81176521,0.00026545,2]
[377417626,1754401162216,-665.81176521,0.00026545,2]
[377417627,1754401162283,-665.81176521,0.00026545,2]
[377417628,1754401162318,-665.81176521,0.00026545,2]
[377417629,1754401162352,-665.81176521,0.00026545,2]
[377417630,1754401162386,-339.31764353,0.00026545,2]
[377417631,1754401162652,-326.49412168,0.00026545,2]
[377417632,1754401162688,-665.81176521,0.00026545,2]
[377417633,1754401162727,-665.81176521,0.00026545,2]
[377417634,1754401162762,-665.81176521,0.00026545,2]
[377417635,1754401162938,-665.81176521,0.00026545,2]
[377417636,1754401162972,-665.81176521,0.00026545,2]
[377417637,1754401163007,-665.81176521,0.00026545,2]
[377417638,1754401163042,-339.31764353,0.00026545,2]
[377417639,1754401163268,160.0,0.0002,3]
[377417640,1754401163307,-326.49412168,0.00026545,2]
[377417641,1754401163344,-665.81176521,0.00026545,2]
[377417642,1754401163378,-665.81176521,0.00026545,2]
[377417643,1754401163414,-665.81176521,0.00026545,2]
[377417644,1754401163551,-665.81176521,0.00026545,2]
[377417645,1754401163584,-500.0,0.00026545,2]
[377417646,1754401163618,-500.0,0.00026545,2]
[377417647,1754401163650,-500.0,0.00026545,2]
[377417648,1754401163685,-168.37646958,0.00026545,2]
[377417649,1754401163747,160.0,0.0002,3]
[377417650,1754401163784,-331.62353042,0.00026545,2]
[377417651,1754401163816,-500.0,0.00026545,2]
[377417652,1754401163846,-500.0,0.00026545,2]
[377417653,1754401163877,-500.0,0.00026545,2]
[377417654,1754401163912,-500.0,0.00026545,2]
[377417655,1754401164059,-500.0,0.00026545,2]
[377417656,1754401164094,-500.0,0.00026545,2]
[377417657,1754401164126,-500.0,0.00026545,2]
[377417658,1754401164161,-500.0,0.00026545,2]
[377417659,1754401164193,-500.0,0.00026545,2]
[377417660,1754401164286,-650.0,0.00026545,2]
[377417661,1754401164319,-500.0,0.00026545,2]
[377417662,1754401164864,-26.07058269,0.00026546,2]
[377417663,1754401164888,-336.75293916,0.00026546,2]
[377417664,1754401164910,-500.0,0.00026546,2]
[377417665,1754401164927,-500.0,0.00026546,2]
[377417666,1754401164942,-500.0,0.00026546,2]
[377417667,1754401164958,-500.0,0.00026546,2]
[377417668,1754401164978,-500.0,0.00026546,2]
[377417669,1754401164993,-650.0,0.00026546,2]
[377417670,1754401165008,-500.0,0.00026546,2]
[377417671,1754401165035,-2700.0,0.00026546,2]
[377417672,1754401165055,-5000.0,0.00026546,2]
[377417673,1754401165085,-5000.0,0.00026546,2]
[377417674,1754401165110,-5000.0,0.00026546,2]
[377417675,1754401165131,-5000.0,0.00026546,2]
[377417676,1754401165964,-5000.0,0.00026546,2]
[377417677,1754401166136,-5000.0,0.00026546,2]
[377417678,1754401166291,-5000.0,0.00026546,2]
[377417679,1754401178068,892.31311317,0.00025749,2]
[377417680,1754401182645,5000.0,0.000265,2]
[377417681,1754401184950,206.28856532,0.00025205,30]
[377417682,1754401185456,215.85310535,0.00025205,30]
[377417683,1754401187643,1998.58767331,0.000249,2]
[377417684,1754401187730,1998.58767307,0.000249,2]
[377417685,1754401187830,1998.58767307,0.000249,2]
[377417686,1754401187940,1998.58767307,0.000249,2]
[377417687,1754401188037,1998.58767307,0.000249,2]
[377417688,1754401188159,1998.58767307,0.000249,2]
[377417689,1754401188252,1998.58767307,0.000249,2]
[377417690,1754401188472,1998.58767307,0.000249,2]
[377417691,1754401188607,1998.58767307,0.00025455,3]
[377417692,1754401188836,263.86380918,0.00026445,2]
[377417693,1754401200753,5000.0,0.000265,2]
[377417694,1754401204418,361.4592384,0.00025655,2]
[377417695,1754401208030,-500.0,0.00026545,2]
[377417696,1754401208180,-500.0,0.00026545,2]
[377417697,1754401208217,-500.0,0.00026545,2]
[377417698,1754401208252,-500.0,0.00026545,2]
[377417699,1754401208285,-500.0,0.00026545,2]